bitfinex-derivatives/quotes_SOLF0:USTF0_20260202
["timestamp","ask_amount","ask_price","bid_price","bid_amount"]
[1770063315365,8.6687,103.91,103.86,2.96852061]
[1770063315865,12.13239861,103.9,103.83,2.46503608]
[1770063316064,3.46259861,103.89,103.83,5.43355669]
[1770063316763,6.43111922,103.88,103.81,11.64472061]
[1770063316959,3.46259861,103.87,103.81,11.64472061]
[1770063317559,3.46259861,103.86,103.8,2.96852061]
[1770063317966,3.46259861,103.86,103.82,2.96852061]
[1770063318267,3.46259861,103.86,103.8,5.35234315]
[1770063318461,386.3976,103.89,103.82,5.35234315]
[1770063318462,6.43111922,103.88,103.82,5.35234315]
[1770063318669,6.43111922,103.88,103.82,2.38382254]
[1770063318960,11.63892061,103.89,103.83,11.05912254]
[1770063319165,2.96852061,103.88,103.83,11.05912254]
[1770063319764,12.13299861,103.89,103.83,11.05912254]
[1770063319966,3.46259861,103.89,103.83,11.05912254]
[1770063320265,6.43111922,103.89,103.83,11.05912254]
[1770063320865,3.46259861,103.89,103.83,11.05912254]
[1770063321262,6.43111922,103.89,103.83,11.05912254]
[1770063322264,15.10151922,103.89,103.83,11.05912254]
[1770063322568,2.96852061,103.88,103.83,2.38382254]
[1770063322760,15.10151922,103.89,103.83,2.38382254]
[1770063323366,15.38954524,103.91,103.84,2.25116079]
[1770063323866,6.72004524,103.89,103.82,13.93455302]
[1770063324064,6.72004524,103.89,103.82,10.96603241]
[1770063324365,2.96852061,103.87,103.82,2.29043241]
[1770063325166,6.72004524,103.86,103.8,2.29043241]
[1770063325569,2.96852061,103.85,103.8,2.29043241]
[1770063325862,11.64072061,103.87,103.8,2.29043241]
[1770063326067,11.64072061,103.87,103.81,2.28846035]
[1770063326469,3.75152463,103.88,103.82,8.6761]
[1770063328372,12.42302463,103.88,103.82,8.6761]
[1770063329576,12.42302463,103.88,103.82,10.95701795]
[1770063330175,8.6704,103.89,103.83,2.35505015]
[1770063330573,12.42192463,103.89,103.83,11.03025015]
[1770063330775,8.6712,103.88,103.83,11.03025015]
[1770063330976,8.6712,103.88,103.83,2.35505015]
[1770063331274,3.75152463,103.87,103.8,2.35505015]
[1770063331673,8.6731,103.86,103.8,11.03215015]
[1770063331976,3.75152463,103.87,103.8,2.35505015]
[1770063332172,8.6713,103.88,103.82,8.6754]
[1770063332379,12.42282463,103.88,103.82,11.0036883]
[1770063333477,8.6705,103.89,103.83,11.0035883]
[1770063333674,8.6705,103.89,103.83,2.3282883]
[1770063333873,12.42202463,103.89,103.83,2.3282883]
[1770063334079,12.42202463,103.89,103.83,11.0034883]
[1770063334278,12.42272463,103.88,103.81,2.39040127]
[1770063334580,12.42272463,103.88,103.82,8.6755]
[1770063334781,12.42272463,103.88,103.82,2.39040127]
[1770063335178,12.42272463,103.88,103.83,8.6753]
[1770063335483,12.42202463,103.89,103.83,11.06570127]
[1770063336375,12.42292463,103.88,103.83,8.6753]
[1770063336579,12.42292463,103.88,103.82,8.676]
[1770063336781,3.75152463,103.88,103.82,8.676]
[1770063336976,8.6728,103.87,103.81,2.38992753]
[1770063337383,8.6728,103.87,103.81,11.06632753]
[1770063338586,8.673,103.86,103.81,11.06632753]
[1770063339478,12.42372463,103.87,103.82,11.05138736]
[1770063339883,3.75152463,103.87,103.83,8.6752]
[1770063340179,8.6712,103.88,103.83,8.6752]
[1770063340680,12.42272463,103.88,103.83,8.6752]
[1770063340888,12.42272463,103.88,103.82,11.05138736]
[1770063341185,8.6721,103.87,103.82,11.05138736]
[1770063342683,12.42282463,103.88,103.83,8.6753]
[1770063343188,12.42282463,103.88,103.82,2.37538736]
[1770063343389,12.42282463,103.88,103.82,11.05148736]
[1770063343585,12.42282463,103.88,103.82,2.37538736]
[1770063343890,8.6705,103.89,103.83,11.04098921]
[1770063344183,12.42202463,103.89,103.83,11.04098921]
[1770063344389,28.9,103.92,103.85,134.9203]
[1770063344586,6.930607,103.94,103.85,134.9203]
[1770063344786,6.930607,103.94,103.84,268.5044]
[1770063344984,6.930607,103.92,103.85,8.673]
[1770063345890,15.598607,103.92,103.85,8.673]
[1770063346492,2.96644157,103.91,103.85,8.673]
[1770063347194,9.88578977,103.91,103.85,8.673]
[1770063348192,6.9193482,103.91,103.85,11.63944157]
[1770063349390,6.9193482,103.91,103.86,2.96644157]
[1770063349990,6.9193482,103.91,103.85,2.96644157]
[1770063350190,6.9193482,103.91,103.83,371.5748]
[1770063350191,9.93188336,103.9,103.83,11.64124157]
[1770063350392,6.96544179,103.88,103.82,2.96644157]
[1770063350593,9.93188336,103.9,103.83,2.96644157]
[1770063350797,6.96544179,103.9,103.84,2.96644157]
[1770063351794,6.96544179,103.9,103.85,2.96644157]
[1770063352100,6.96544179,103.9,103.86,2.96644157]
[1770063352298,6.96544179,103.9,103.85,2.96644157]
[1770063353000,6.97368183,103.92,103.86,2.96644157]
[1770063353194,9.9401234,103.92,103.86,2.96644157]
[1770063353400,6.97368183,103.91,103.85,11.64004157]
[1770063354400,15.64238183,103.91,103.85,11.64004157]
[1770063354794,6.95458514,103.9,103.82,497.1214]
[1770063355000,6.95458514,103.9,103.84,2.96644157]
[1770063356302,6.95458514,103.9,103.84,11.64064157]
[1770063358401,9.8922334,103.89,103.82,365.12644157]
[1770063358602,6.92579183,103.89,103.83,2.96644157]
[1770063358998,2.96644157,103.9,103.83,2.96644157]
[1770063359200,6.92579183,103.9,103.83,134.9453]
[1770063359398,2.96644157,103.9,103.83,2.96644157]
[1770063359596,9.8922334,103.9,103.83,2.96644157]
[1770063360506,9.8665916,103.92,103.85,2.96644157]
[1770063361006,6.90015003,103.92,103.85,2.96644157]
[1770063361207,6.90015003,103.92,103.86,8.6727]
[1770063361408,6.90015003,103.92,103.86,11.63914157]
[1770063361706,6.90015003,103.94,103.89,2.96644157]
[1770063362109,6.90015003,103.94,103.88,2.96644157]
[1770063363016,9.8503359,103.93,103.86,2.96644157]
[1770063363302,6.88389433,103.93,103.87,2.96644157]
[1770063363903,9.80922755,103.92,103.85,500.80944157]
[1770063364102,6.84278598,103.92,103.86,2.96644157]
[1770063364302,6.84278598,103.92,103.87,11.63844157]
[1770063364506,6.84278598,103.94,103.88,2.96644157]
[1770063365305,6.84278598,103.94,103.88,11.63754157]
[1770063366113,18.46238785,103.96,103.89,11.63654157]
[1770063366610,6.83074628,103.95,103.89,11.63654157]
[1770063366816,6.83074628,103.95,103.89,8.6701]
[1770063367113,6.83074628,103.94,103.89,8.6701]
[1770063369009,9.79832013,103.93,103.87,381.37375101]
[1770063369214,6.83187856,103.92,103.86,367.04644157]
[1770063369410,9.79832013,103.92,103.86,364.08]
[1770063369716,18.46612013,103.92,103.86,372.7528]
[1770063369916,9.79832013,103.92,103.86,364.08]
[1770063370106,9.79832013,103.92,103.87,8.672]
[1770063370308,6.83541745,103.91,103.86,364.08]
[1770063371516,6.83541745,103.91,103.86,372.7525]
[1770063372420,6.83541745,103.91,103.87,8.672]
[1770063372719,18.49137535,103.93,103.87,8.672]
[1770063374013,18.49341661,103.92,103.87,8.672]
[1770063374409,18.49341661,103.92,103.86,364.08]
[1770063374410,18.49289761,103.92,103.86,372.7527]
[1770063376409,18.49289761,103.92,103.87,8.672]
[1770063376611,9.82499761,103.92,103.87,8.672]
[1770063379820,18.49289761,103.92,103.87,8.672]
[1770063381121,18.49289761,103.92,103.86,364.08]
[1770063381513,9.66343464,103.91,103.86,364.08]
[1770063381715,9.66343464,103.9,103.85,8.6734]
[1770063383123,18.33313464,103.9,103.84,26.60805101]
[1770063384223,9.68341635,103.89,103.84,26.60805101]
[1770063384524,2.96592257,103.88,103.83,371.84]
[1770063385316,2.96592257,103.88,103.83,380.5151]
[1770063385523,2.96592257,103.88,103.81,17.93375101]
[1770063385524,9.68341635,103.85,103.81,17.93375101]
[1770063385717,9.68341635,103.84,103.79,17.93375101]
[1770063385922,2.96592257,103.83,103.78,17.93375101]
[1770063386224,6.71749378,103.84,103.79,8.6787]
[1770063386519,9.68341635,103.84,103.79,382.0187]
[1770063388716,9.66837584,103.83,103.78,26.61315101]
[1770063388921,9.66837584,103.83,103.78,8.6794]
[1770063389324,6.70245327,103.83,103.78,8.6794]
[1770063390821,2.96592257,103.84,103.79,8.6785]
[1770063391025,18.34802205,103.85,103.79,8.6785]
[1770063392725,2.96592257,103.84,103.79,8.6785]
[1770063395026,18.34802205,103.85,103.79,8.6785]
[1770063395628,6.70839948,103.85,103.8,8.6777]
[1770063396027,2.96592257,103.86,103.8,8.6777]
[1770063396223,15.36580104,103.89,103.82,2.96592257]
[1770063396529,6.69480104,103.89,103.83,2.96592257]
[1770063396828,6.69480104,103.89,103.82,512.0414]
[1770063396829,6.69480104,103.89,103.84,8.6744]
[1770063397724,18.32952361,103.91,103.85,8.6736]
[1770063397926,18.32952361,103.91,103.84,380.54592257]
[1770063397927,9.66072361,103.91,103.84,380.54592257]
[1770063398226,134.813,103.94,103.87,2.96592257]
[1770063398227,9.62903402,103.94,103.87,2.96592257]
[1770063398432,6.66311145,103.94,103.88,2.96592257]
[1770063398629,6.66311145,103.94,103.88,380.72592257]
[1770063399129,2.96592257,103.94,103.89,8.6696]
[1770063399826,9.62903402,103.95,103.89,8.6696]
[1770063400033,6.66311145,103.95,103.9,8.6693]
[1770063400227,2.96592257,103.96,103.9,8.6693]
[1770063400422,18.26568158,103.97,103.9,11.63522257]
[1770063400631,2.96592257,103.96,103.9,8.6693]
[1770063401126,9.60128158,103.96,103.9,8.6693]
[1770063401330,2.96592257,103.94,103.88,404.36415101]
[1770063401528,2.96592257,103.94,103.88,386.4304]
[1770063402830,9.5995835,103.92,103.87,8.6717]
[1770063403627,2.96592257,103.91,103.85,8.6731]
[1770063404031,2.96592257,103.91,103.86,8.6726]
[1770063404226,9.5995835,103.92,103.86,8.6726]
[1770063404831,6.63366093,103.92,103.87,8.672]
[1770063405031,6.63366093,103.92,103.86,137.87472257]
[1770063405432,6.63366093,103.92,103.86,146.54672257]
[1770063405729,6.63366093,103.92,103.86,137.87472257]
[1770063407131,2.96592257,103.93,103.88,8.6711]
[1770063407529,9.61350815,103.93,103.88,8.6711]
[1770063407933,2.96592257,103.92,103.88,8.6711]
[1770063409040,9.61428513,103.92,103.87,8.672]
[1770063409329,9.61436095,103.89,103.83,134.9439]
[1770063409526,9.61436095,103.89,103.83,518.1239]
[1770063409835,2.96592257,103.86,103.83,383.18]
[1770063410034,2.96592257,103.86,103.8,134.9793]
[1770063410437,6.65024701,103.87,103.8,134.9793]
[1770063410627,6.65024701,103.87,103.82,8.6761]
[1770063410833,6.65024701,103.87,103.79,518.5326]
[1770063411135,6.65031843,103.85,103.79,383.54]
[1770063411836,6.65031843,103.85,103.8,8.6778]
[1770063413827,6.65031843,103.85,103.79,383.54]
[1770063414434,6.65031843,103.85,103.8,8.6778]
[1770063414737,6.65031843,103.85,103.79,383.54]
[1770063414933,6.59694494,103.87,103.79,383.54]
[1770063416439,15.26894494,103.87,103.8,8.6777]
[1770063418141,148.82226223,103.9,103.81,8.6769]
[1770063418338,6.5359548,103.89,103.81,392.8369]
[1770063419032,15.2071548,103.88,103.82,8.6761]
[1770063419444,15.2071548,103.88,103.81,384.16]
[1770063420543,15.2071548,103.88,103.81,392.837]
[1770063422742,8.6722,103.87,103.81,392.837]
[1770063422945,6.53189488,103.86,103.78,17.93375101]
[1770063423153,6.53189488,103.85,103.77,252.9]
[1770063423649,6.53189488,103.83,103.77,252.9]
[1770063424040,6.53189488,103.83,103.76,384.2]
[1770063425347,8.6762,103.82,103.76,392.8811]
[1770063426348,6.53189488,103.83,103.77,8.6797]
[1770063432045,15.46109764,103.81,103.74,8.6828]
[1770063432248,15.46109764,103.81,103.72,135.0846]
[1770063432249,6.78389764,103.81,103.73,135.0797]
[1770063432452,6.78389764,103.83,103.75,8.682]
[1770063432748,6.78389764,103.82,103.72,526.78840743]
[1770063432947,14.20770507,103.82,103.72,519.3646]
[1770063433150,6.78389764,103.79,103.73,8.6837]
[1770063433546,6.78389764,103.78,103.69,135.1246]
[1770063433850,6.78389764,103.78,103.69,519.4246]
[1770063434253,6.80869437,103.77,103.71,8.6853]
[1770063434954,8.6795,103.78,103.72,8.6845]
[1770063435155,6.80869437,103.79,103.72,135.0929]
[1770063435358,6.80869437,103.79,103.72,519.4129]
[1770063435557,6.80869437,103.81,103.73,135.0803]
[1770063435749,6.80869437,103.8,103.72,519.4129]
[1770063435949,6.80869437,103.8,103.73,135.0799]
[1770063436146,6.82980547,103.82,103.74,135.0644]
[1770063437244,15.50630547,103.82,103.75,8.682]
[1770063437456,6.82980547,103.81,103.73,384.38]
[1770063437756,6.82980547,103.81,103.72,519.4729]
[1770063438158,15.50680547,103.81,103.74,8.6828]
[1770063438654,6.8034978,103.8,103.74,8.6828]
[1770063438956,6.8034978,103.8,103.75,8.682]
[1770063439554,6.8034978,103.79,103.72,384.38]
[1770063439754,6.8034978,103.79,103.72,519.4729]
[1770063439954,6.8034978,103.79,103.73,135.0792]
[1770063440952,142.37919265,103.83,103.73,135.0792]
[1770063441254,6.8003357,103.82,103.73,135.0792]
[1770063441450,6.8003357,103.8,103.75,8.6819]
[1770063442652,6.79671431,103.82,103.76,8.6812]
[1770063443960,6.79671431,103.82,103.75,8.6819]
[1770063444450,6.79551403,103.81,103.75,8.6819]
[1770063446755,15.47251403,103.81,103.75,8.6819]
[1770063447153,6.79512855,103.83,103.74,384.42]
[1770063447357,8.6763,103.82,103.76,8.681]
[1770063448257,15.47052855,103.83,103.77,8.6803]
[1770063449050,15.47052855,103.83,103.78,8.6795]
[1770063449457,15.47052855,103.83,103.75,519.4933]
[1770063450063,15.47052855,103.83,103.77,8.6796]
[1770063450355,7.42809265,103.87,103.78,135.0118]
[1770063450655,6.8734615,103.87,103.78,135.0118]
[1770063452059,6.8734615,103.87,103.78,519.4518]
[1770063452259,15.5455615,103.87,103.78,519.4518]
[1770063453064,15.5455615,103.87,103.81,8.6769]
[1770063453460,6.87841984,103.86,103.81,8.6769]
[1770063453963,6.88489973,103.84,103.76,135.0412]
[1770063454754,6.88489973,103.82,103.77,8.6803]
[1770063454955,6.88489973,103.82,103.73,153.00315101]
[1770063455161,6.88489973,103.82,103.73,135.0694]
[1770063456358,6.89232282,103.8,103.75,8.6819]
[1770063460267,6.89232282,103.8,103.76,8.6812]
[1770063460668,6.90009948,103.82,103.76,135.0396]
[1770063461759,6.90009948,103.82,103.78,8.6787]
[1770063462169,16.10249265,103.85,103.77,135.69443297]
[1770063462365,8.6728,103.86,103.79,0.67053297]
[1770063463364,8.6728,103.86,103.81,8.6769]
[1770063463765,8.6728,103.86,103.79,0.67053297]
[1770063463766,16.10179265,103.85,103.79,0.67053297]
[1770063464060,7.42809265,103.85,103.79,0.67053297]
[1770063464264,3.51649679,103.88,103.81,0.68697031]
[1770063464470,3.51649679,103.88,103.83,8.6753]
[1770063465869,3.51649679,103.88,103.81,0.68697031]
[1770063466071,3.51649679,103.86,103.79,0.7857146]
[1770063466566,3.51649679,103.85,103.79,8.6787]
[1770063468470,3.51649679,103.85,103.8,8.6777]
[1770063472575,3.51649679,103.85,103.81,8.6769]
[1770063473570,3.51649679,103.85,103.8,8.6777]
[1770063474465,3.51649679,103.85,103.81,8.6768]
[1770063475070,3.51649679,103.85,103.82,8.676]
[1770063475373,7.42809265,103.89,103.83,3.42731524]
[1770063475575,244.60809265,103.91,103.83,3.42731524]
[1770063475771,253.27749265,103.91,103.83,3.42731524]
[1770063475976,253.27749265,103.91,103.84,3.42731524]
[1770063476675,237.18,103.91,103.86,8.6728]
[1770063477066,245.8489,103.91,103.84,3.42731524]
[1770063477273,3.49194995,103.9,103.82,3.42731524]
[1770063478378,3.49194995,103.89,103.83,8.6745]
[1770063478574,3.49194995,103.89,103.83,3.42731524]
[1770063479375,3.49194995,103.89,103.84,8.6744]
[1770063480577,3.49194995,103.88,103.82,8.6756]
[1770063480977,3.49194995,103.88,103.81,3.42731524]
[1770063481174,3.49194995,103.88,103.83,8.6751]
[1770063481372,8.6706,103.89,103.83,8.6751]
[1770063481373,12.16154995,103.9,103.83,3.42731524]
[1770063481876,12.16154995,103.9,103.84,8.6744]
[1770063483278,12.16154995,103.9,103.84,12.10171524]
[1770063484177,8.6685,103.92,103.84,138.35821524]
[1770063484379,3.49194995,103.92,103.85,3.42731524]
[1770063485282,3.49194995,103.92,103.87,8.672]
[1770063486080,3.49194995,103.94,103.87,3.42731524]
[1770063486876,3.49194995,103.94,103.89,8.6703]
[1770063487076,3.49194995,103.94,103.89,3.42731524]
[1770063487274,3.49194995,103.95,103.89,3.42731524]
[1770063487982,3.49194995,103.97,103.91,8.6686]
[1770063489384,3.49194995,103.96,103.91,8.6686]
[1770063491387,193.38809265,103.98,103.92,3.42731524]
[1770063491388,3.49194995,103.98,103.92,3.42731524]
[1770063491890,3.49194995,103.98,103.93,3.42731524]
[1770063492278,10.9200426,104.0,103.93,3.42731524]
[1770063492480,3.49194995,104.0,103.94,8.6653]
[1770063493187,3.49194995,104.0,103.94,12.09261524]
[1770063493403,10.9200426,104.02,103.95,3.42731524]
[1770063493691,3.49194995,104.02,103.95,3.42731524]
[1770063494293,3.49194995,104.02,103.96,12.09171524]
[1770063495494,3.49194995,104.01,103.96,3.42731524]
[1770063495892,3.49194995,104.01,103.94,3.42731524]
[1770063496201,3.49194995,104.01,103.94,12.09341524]
[1770063496389,3.49194995,104.01,103.92,518.9316]
[1770063496390,12.15304995,104.01,103.95,3.42731524]
[1770063497285,3.49194995,104.01,103.95,12.09241524]
[1770063497488,241.69194995,104.03,103.96,3.42731524]
[1770063497890,3.49194995,104.03,103.96,3.42731524]
[1770063498597,3.49194995,104.02,103.94,3.42731524]
[1770063498792,3.49194995,104.02,103.95,3.42731524]
[1770063499189,3.49194995,104.02,103.97,8.6635]
[1770063499595,3.49194995,104.02,103.95,138.22131524]
[1770063499596,3.49194995,104.02,103.95,3.42731524]
[1770063499797,3.49194995,104.01,103.95,12.09191524]
[1770063501302,12.23909727,104.03,103.97,3.4605052]
[1770063501501,434.5687,104.05,103.97,3.4605052]
[1770063501502,3.58039727,104.05,103.97,3.4605052]
[1770063502001,3.58039727,104.05,103.99,3.4605052]
[1770063502605,3.58039727,104.03,103.97,3.4605052]
[1770063502803,3.58039727,104.03,103.95,138.2534052]
[1770063503102,3.58039727,104.03,103.97,3.4605052]
[1770063503306,3.58039727,104.05,103.99,3.4605052]
[1770063504306,3.58039727,104.05,103.99,12.1221052]
[1770063505008,3.58039727,104.07,104.0,3.4605052]
[1770063505910,3.58039727,104.05,103.98,3.4605052]
[1770063506712,3.58039727,104.05,103.99,3.4605052]
[1770063507409,3.58039727,104.05,103.99,12.1222052]
[1770063508105,10.98514166,104.08,104.0,12.1214052]
[1770063508501,10.98514166,104.08,104.01,3.4605052]
[1770063509100,3.58039727,104.08,104.01,12.1204052]
[1770063509709,3.58039727,104.07,104.01,3.4605052]
[1770063511002,3.58039727,104.07,103.99,3.4605052]
[1770063511613,3.58039727,104.07,104.0,3.4605052]
[1770063512111,12.23669727,104.06,104.0,3.4605052]
[1770063513818,10.98514166,104.04,103.98,3.4605052]
[1770063515112,10.98514166,104.04,103.98,12.1232052]
[1770063515913,19.64134166,104.06,104.0,3.4605052]
[1770063517418,12.23749727,104.05,103.99,8.6619]
[1770063519322,12.23749727,104.05,103.99,12.1224052]
[1770063520625,12.23849727,104.04,103.97,3.4605052]
[1770063521125,3.58039727,104.03,103.97,3.4605052]
[1770063521326,3.58039727,104.03,103.98,8.6625]
[1770063521827,3.58039727,104.05,103.98,3.4605052]
[1770063522325,3.58039727,104.04,103.99,8.662]
[1770063522717,3.58039727,104.04,103.99,12.1225052]
[1770063523527,3.58039727,104.04,103.97,3.4605052]
[1770063523724,3.58039727,104.03,103.95,3.4605052]
[1770063524429,2.96083314,104.01,103.95,3.4605052]
[1770063524630,2.96083314,104.01,103.96,8.6644]
[1770063526325,12.24009727,104.02,103.96,12.1249052]
[1770063530431,8.6587,104.03,103.97,12.31615586]
[1770063530730,12.28428681,104.03,103.97,12.31615586]
[1770063531624,12.28508681,104.02,103.97,3.65315586]
[1770063533632,12.28508681,104.02,103.96,8.6644]
[1770063534931,3.62558681,104.0,103.95,12.31835586]
[1770063535234,3.62558681,103.98,103.91,3.65315586]
[1770063536033,3.62558681,103.98,103.87,525.99459734]
[1770063536237,3.62558681,103.96,103.89,3.65315586]
[1770063537434,12.29018681,103.96,103.9,8.6694]
[1770063539837,8.6654,103.95,103.89,12.32345586]
[1770063540137,12.29098681,103.95,103.89,12.32345586]
[1770063540438,19.69468415,103.93,103.87,8.6718]
[1770063540628,19.69468415,103.93,103.86,3.65315586]
[1770063540629,11.02758415,103.93,103.86,3.65315586]
[1770063540834,3.62558681,103.92,103.86,3.65315586]
[1770063541036,19.69628415,103.91,103.84,12.32695586]
[1770063541231,11.02758415,103.93,103.85,3.65315586]
[1770063541632,3.62558681,103.93,103.87,12.32505586]
[1770063542642,3.62558681,103.92,103.85,12.32615586]
[1770063543535,3.62558681,103.92,103.87,3.65315586]
[1770063544932,3.62558681,103.92,103.85,12.32645586]
[1770063546436,2.96764144,103.89,103.85,3.65315586]
[1770063546836,2.96764144,103.9,103.85,3.65315586]
[1770063547043,2.96764144,103.9,103.85,12.32675586]
[1770063547742,2.96764144,103.9,103.85,3.65315586]
[1770063547941,2.96764144,103.9,103.83,8.6746]
[1770063547942,2.96764144,103.87,103.83,3.65315586]
[1770063548141,2.96764144,103.86,103.81,3.65315586]
[1770063548337,2.96764144,103.86,103.81,12.32995586]
[1770063549136,6.59322825,103.87,103.82,3.65315586]
[1770063551144,2.96764144,103.86,103.82,3.65315586]
[1770063552040,6.59322825,103.87,103.82,3.65315586]
[1770063552237,6.59322825,103.87,103.81,8.6768]
[1770063552441,6.59322825,103.87,103.81,12.32995586]
[1770063554643,2.96764144,103.86,103.81,12.32995586]
[1770063555744,6.59322825,103.87,103.81,12.32995586]
[1770063556345,3.62558681,103.87,103.82,3.65315586]
[1770063556546,6.59322825,103.87,103.82,3.65315586]
[1770063557744,2.96764144,103.86,103.82,12.32925586]
[1770063558540,6.59483067,103.87,103.82,12.32925586]
[1770063558735,3.62558681,103.87,103.82,15.29849972]
[1770063561950,12.07655991,103.89,103.83,6.71426566]
[1770063562251,12.07655991,103.89,103.84,2.96924386]
[1770063563350,12.07655991,103.89,103.84,11.64364386]
[1770063564648,12.07655991,103.89,103.85,2.96924386]
[1770063564850,3.40605991,103.89,103.85,2.96924386]
[1770063565147,8.6696,103.9,103.86,2.96924386]
[1770063565546,12.07645991,103.89,103.84,6.71426566]
[1770063565944,12.07645991,103.89,103.84,3.7450218]
[1770063566244,12.07645991,103.89,103.84,12.4193218]
[1770063566449,3.40605991,103.89,103.84,15.38856566]
[1770063566645,237.64924386,103.92,103.85,2.96924386]
[1770063566848,3.40605991,103.91,103.85,2.96924386]
[1770063567048,12.07535991,103.91,103.85,15.38786566]
[1770063567750,15.04460377,103.91,103.85,15.38786566]
[1770063568853,3.40605991,103.9,103.84,11.64364386]
[1770063569149,6.37530377,103.9,103.84,12.4194218]
[1770063569350,3.40605991,103.89,103.84,12.4194218]
[1770063569951,6.37530377,103.89,103.84,12.4194218]
[1770063570252,3.40605991,103.88,103.83,8.6752]
[1770063570444,6.37530377,103.88,103.83,8.6752]
[1770063570643,6.37530377,103.88,103.83,12.4202218]
[1770063570842,3.40605991,103.88,103.83,12.4202218]
[1770063571448,12.07725991,103.88,103.83,12.4202218]
[1770063573445,8.6696,103.9,103.85,3.7450218]
[1770063573646,6.37530377,103.91,103.85,3.7450218]
[1770063573849,134.8368,103.92,103.79,134.9917]
[1770063573850,3.40605991,103.85,103.79,3.7450218]
[1770063574047,6.37530377,103.82,103.75,3.7450218]
[1770063574256,2.96924386,103.81,103.75,3.7450218]
[1770063574457,6.37530377,103.81,103.75,3.7450218]
[1770063574959,2.96924386,103.8,103.75,3.7450218]
[1770063575557,6.37530377,103.81,103.75,3.7450218]
[1770063575756,2.96924386,103.8,103.75,3.7450218]
[1770063576660,2.96924386,103.82,103.76,3.7450218]
[1770063576864,3.40605991,103.83,103.76,3.7450218]
[1770063577163,6.37530377,103.83,103.77,3.7450218]
[1770063578465,2.96924386,103.82,103.77,3.7450218]
[1770063579766,2.96924386,103.81,103.77,3.7450218]
[1770063580459,19.51256252,103.83,103.77,3.7450218]
[1770063580767,3.40605991,103.8,103.72,3.7450218]
[1770063582367,3.40605991,103.8,103.73,3.7450218]
[1770063583369,3.40605991,103.79,103.73,3.7450218]
[1770063584268,3.40605991,103.78,103.71,259.38597896]
[1770063584468,3.40605991,103.78,103.72,3.7450218]
[1770063585373,12.08575991,103.78,103.72,3.7450218]
[1770063585870,7.43090261,103.79,103.7,8.686]
[1770063585871,3.40605991,103.76,103.7,12.4310218]
[1770063586370,3.40605991,103.76,103.71,3.7450218]
[1770063588567,3.40605991,103.76,103.69,396.8120218]
[1770063588972,3.40605991,103.76,103.7,3.7450218]
[1770063589371,3.40605991,103.76,103.7,12.4311218]
[1770063589771,3.67545337,103.78,103.71,3.56907312]
[1770063590274,12.35505337,103.78,103.71,3.56907312]
[1770063590474,3.54469565,103.77,103.71,3.56907312]
[1770063594980,10.97559826,103.77,103.71,3.56907312]
[1770063595277,3.54469565,103.76,103.71,3.56907312]
[1770063600083,3.54469565,103.76,103.7,8.6862]
[1770063600278,3.54469565,103.76,103.69,396.593118]
[1770063600473,6.52124878,103.74,103.69,12.213118]
[1770063600673,6.52124878,103.74,103.67,138.12655313]
[1770063600674,2.97655313,103.72,103.67,3.526118]
[1770063600875,2.97655313,103.74,103.69,12.212918]
[1770063601075,6.52124878,103.74,103.69,12.212918]
[1770063601281,2.97655313,103.73,103.69,12.212918]
[1770063602782,3.54469565,103.76,103.7,12.212218]
[1770063602985,2.97655313,103.75,103.7,12.212218]
[1770063603492,242.3811,103.77,103.72,3.526118]
[1770063603684,2.97655313,103.76,103.72,3.526118]
[1770063603879,3.54469565,103.77,103.71,8.6853]
[1770063604085,2.97655313,103.75,103.71,3.526118]
[1770063604686,3.54469565,103.77,103.68,8.6878]
[1770063604687,2.97655313,103.73,103.68,8.6878]
[1770063604986,2.97655313,103.72,103.68,12.213918]
[1770063605285,3.54469565,103.74,103.68,12.213918]
[1770063605286,15.20424878,103.74,103.69,3.526118]
[1770063605785,12.22769565,103.74,103.69,3.526118]
[1770063605985,15.20424878,103.74,103.69,3.526118]
[1770063606583,12.22769565,103.74,103.69,3.526118]
[1770063608589,3.54469565,103.74,103.69,12.213118]
[1770063608886,8.6822,103.75,103.69,15.18967113]
[1770063609292,2.97655313,103.72,103.67,3.526118]
[1770063609486,6.52124878,103.73,103.67,3.526118]
[1770063609687,2.97655313,103.71,103.67,3.526118]
[1770063609883,2.97655313,103.7,103.64,3.526118]
[1770063610081,2.97655313,103.69,103.64,3.526118]
[1770063610984,2.97655313,103.68,103.64,3.526118]
[1770063611189,2.97655313,103.66,103.62,3.526118]
[1770063611783,2.97655313,103.67,103.62,3.526118]
[1770063612787,2.97655313,103.68,103.62,3.526118]
[1770063613387,3.54469565,103.69,103.53,3.526118]
[1770063613388,3.54469565,103.62,103.53,3.526118]
[1770063613594,2.97655313,103.58,103.53,3.526118]
[1770063614889,2.97655313,103.57,103.53,3.526118]